Cogmind - Beta 15 @@@ ROGUE MODE // 2025.07.22 @ 20:21:12 Player: the Result: Destroyed by H-81 Overseer with Heavy Linear Accelerator Performance ------------- Evolutions (9) 4500 Regions Visited (24) 4800 Robots Destroyed (343) 1715 Value Destroyed (17517) 17517 Prototype IDs (14) 280 Alien Tech Used (0) 0 Bonus (12587) 12587 TOTAL SCORE: 41399 Bonus ------- High Alert Combat Kills 4772 Follower Combat Kills 2574 Entered Garrisons 1200 Used RIF Installer 3500 Entered DSFs 1000 Friendly Fire -459 Cogmind --------- Core Integrity 0/1600 Matter 76/300 Energy 98/100 System Corruption 2% Temperature Cool (0) Movement Core (50) Location -1/Command Parts ------- > --- POWER (3) -------- (None) > --- PROPULSION (8) --- (None) > --- UTILITY (9) ------ (None) > --- WEAPON (5) ------- (None) > --- INVENTORY (5) ---- Nanoactuators Gamma Bomb Array Advanced Remote Datajack Peak State ------------ > --- POWER ------------ Particle Reactor Light Particle Reactor > --- PROPULSION ------- Improved Heavy Treads Improved Heavy Treads Improved Heavy Treads > --- UTILITY ---------- Improved Cooling System Advanced Cooling System High-capacity Storage Unit Spectral Analyzer Seismic Detector Advanced Target Analyzer Improved Medium Armor Plating Relay Coupler [Grunt] > --- WEAPON ----------- Quantum Rifle Quantum Rifle Long-range Phase Cannon Long-range Phase Cannon Long-range Phase Cannon > --- INVENTORY -------- Armored Medium Treads Armored Medium Treads Biometal Medium Treads Advanced Heat Sink Matter Compressor Advanced Focal Shield Relay Coupler [NC] Phase Gun Heavy Disruptor Cannon Nova Cannon Gauss Rifle Gauss Rifle Gauss Rifle KE Penetrator Hypervelocity Mass Driver Hypervelocity Mass Driver Rocket Array Advanced Remote Datajack [Rating: 144] Favorites ----------- Power Particle Reactor Engine Ion Engine Power Core Fission Core Reactor Particle Reactor Propulsion Light Treads Treads Light Treads Wheel Armored Wheel Flight Unit Nuclear Pulse Array Utility High-capacity Storage Unit Device Seismic Detector Storage High-capacity Storage Unit Processor Advanced Targeting Computer Hackware Relay Coupler [NC] Protection Improved Medium Armor Plating Weapon Advanced Beam Cannon Energy Gun Plasma Rifle Energy Cannon Advanced Beam Cannon Ballistic Gun Gauss Rifle Launcher Rocket Array Special Weapon Improved Remote Datajack Impact Weapon Hammer Build | -11 -10 -9 -8 -8 -7 -7 -7 -7 -7 -6 -6 -6 -6 -6 -5 -5 -5 -5 -4 -4 -3 -2 -1 -1 ------- Run | Yrd Mat Mat Mat Gar Fac Was Fac Gar Fac Fac Gar Fac DSF Gar Fac Gar Fac DSF Fac Gar Res Res Acc Com Slots Evolved 18 | . . 2 2 . 2 . . . . 2 . . . . 2 . . . 2 . 2 2 2 . Power 2 | . . . . . . . . . . . . . . . 1 . . . . . . 1 . . Propulsion 6 | . . 1 . . 1 . . . . . . . . . 1 . . . 1 . . . 2 . Utility 7 | . . . 2 . 1 . . . . 1 . . . . . . . . 1 . 1 1 . . Weapon 3 | . . 1 . . . . . . . 1 . . . . . . . . . . 1 . . . Parts Attached 203 | 8 13 16 14 13 10 16 . 6 10 4 10 . 1 8 2 12 2 11 9 8 28 . 2 . Power 23 | 1 1 1 2 1 . 3 . 1 1 1 1 . . 2 1 2 . . . . 5 . . . Engine 9 | 1 1 1 1 1 . 1 . . 1 1 . . . 1 . . . . . . . . . . Core 4 | . . . 1 . . . . 1 . . 1 . . . . . . . . . 1 . . . Reactor 10 | . . . . . . 2 . . . . . . . 1 1 2 . . . . 4 . . . Propulsion 47 | 2 3 9 5 5 3 5 . . . . . . . . 1 2 . 3 4 . 4 . 1 . Treads 44 | 2 1 9 5 5 3 5 . . . . . . . . 1 2 . 3 4 . 4 . . . Leg . | . . . . . . . . . . . . . . . . . . . . . . . . . Wheel 2 | . 2 . . . . . . . . . . . . . . . . . . . . . . . Hover . | . . . . . . . . . . . . . . . . . . . . . . . . . Flight 1 | . . . . . . . . . . . . . . . . . . . . . . . 1 . Utility 70 | 3 5 1 6 3 3 3 . 4 5 1 5 . . 4 . 5 1 6 2 2 10 . 1 . Device 24 | 2 1 . 2 . 1 3 . 1 1 1 1 . . 1 . 1 1 2 . 1 4 . 1 . Storage 5 | 1 2 1 . . . . . . . . 1 . . . . . . . . . . . . . Processor 11 | . 1 . 2 . . . . . 1 . . . . . . 2 . 1 . . 4 . . . Hackware 8 | . . . . . 1 . . 1 . . 2 . . 2 . 1 . . 1 . . . . . Protection 22 | . 1 . 2 3 1 . . 2 3 . 1 . . 1 . 1 . 3 1 1 2 . . . Artifact . | . . . . . . . . . . . . . . . . . . . . . . . . . Weapon 63 | 2 4 5 1 4 4 5 . 1 4 2 4 . 1 2 . 3 1 2 3 6 9 . . . Energy Gun 10 | . . . . . . 5 . 1 . . . . . . . . . . . 3 1 . . . Energy Cannon 14 | . . 3 . 3 . . . . . 1 1 . . . . . . . . 1 5 . . . Ballistic Gun 28 | 2 2 2 . . . . . . 3 1 3 . 1 2 . 3 . 2 3 2 2 . . . Ballistic Cannon . | . . . . . . . . . . . . . . . . . . . . . . . . . Launcher 5 | . 1 . . 1 2 . . . . . . . . . . . . . . . 1 . . . Special Weapon 3 | . . . . . 2 . . . . . . . . . . . 1 . . . . . . . Impact Weapon 3 | . 1 . 1 . . . . . 1 . . . . . . . . . . . . . . . Slashing Weapon . | . . . . . . . . . . . . . . . . . . . . . . . . . Piercing Weapon . | . . . . . . . . . . . . . . . . . . . . . . . . . Special Melee Weapon . | . . . . . . . . . . . . . . . . . . . . . . . . . Unidentified Prototypes 7 | . . . . . 1 . . . 1 . . . . . . . . . . . 4 . 1 . Parts Lost 38 | . . . . . 1 . . . 1 . 2 . . 1 . 3 . 9 4 . 13 . 4 . Power 3 | . . . . . . . . . . . . . . . . . . 1 . . 2 . . . Propulsion 9 | . . . . . 1 . . . . . . . . . . 1 . 2 . . 4 . 1 . Utility 13 | . . . . . . . . . 1 . 2 . . . . 2 . 3 . . 2 . 3 . Weapon 13 | . . . . . . . . . . . . . . 1 . . . 3 4 . 5 . . . Highest Loss Streak 7 | . . . . . 1 . . . 1 . 2 . . 1 . 2 . 7 4 . 4 . 2 . To Critical Strikes . | . . . . . . . . . . . . . . . . . . . . . . . . . Average Backups 17 | 4 16 21 19 19 19 17 17 17 16 16 16 19 19 18 18 18 18 17 17 15 17 15 9 3 Power 1 | . 1 1 2 2 2 2 2 2 2 2 2 2 2 1 1 1 1 . . . . . . . Propulsion 3 | 1 3 5 6 6 4 2 3 3 3 3 2 1 1 1 1 1 1 . 1 3 2 . . . Utility 5 | . 6 8 4 3 7 7 6 6 5 4 3 4 4 6 6 7 6 6 5 5 4 5 3 1 Weapon 6 | . 4 5 5 7 5 4 5 5 5 6 8 11 11 9 9 8 9 8 9 6 8 8 4 1 Tool/Special . | . . . . . . . . . . . . . . . . . . . . . . . . . Unused Backups 48 | 2 6 12 . 3 . 6 . . . 1 1 . . 3 . 4 . . . . 1 . 7 2 Power 3 | . . 1 . . . . . . . . . . . 1 . 1 . . . . . . . . Propulsion 8 | 2 2 2 . . . 2 . . . . . . . . . . . . . . . . . . Utility 20 | . 3 3 . 1 . 4 . . . . 1 . . 1 . 3 . . . . 1 . 2 1 Weapon 16 | . 1 6 . 2 . . . . . 1 . . . 1 . . . . . . . . 5 . Tool/Special 1 | . . . . . . . . . . . . . . . . . . . . . . . . 1 Average Slot Usage (%) 87 | . 99 99 99 99 99 88 84 83 83 85 84 80 80 79 77 83 88 83 81 80 79 70 35 . Engine 4 | . 14 11 8 6 7 2 . . 1 6 1 . . . . . . . . . . . . . Core 1 | . . . . 2 . . . 6 5 . 4 6 6 . . . . . . . . 4 2 . Reactor 3 | . . . . . . 4 7 . . . . . . 5 11 11 11 10 10 10 7 8 4 . Treads 19 | . 20 33 27 27 29 19 15 15 15 13 13 13 13 13 12 16 17 14 19 15 17 17 8 . Device 10 | . 11 . 11 9 7 7 7 8 12 12 14 13 13 11 11 9 13 15 13 12 18 21 10 . Storage 7 | . 14 11 9 9 7 7 7 7 7 6 8 6 6 6 5 5 5 5 5 5 4 4 2 . Processor 6 | . . 11 9 9 7 7 7 7 9 13 8 6 6 6 5 9 8 5 5 5 4 4 2 . Hackware 1 | . . . . . 6 7 7 5 . . 1 . . . . . . . 1 5 1 . . . Protection 4 | . 2 . 6 9 6 7 7 7 7 6 3 6 6 5 5 4 5 5 4 5 1 1 2 . Energy Gun 2 | . . . . . . 5 23 22 1 . . . . . . . . . . 9 2 4 2 . Energy Cannon 6 | . . 12 26 25 22 17 . . . . . . . . . . . . . 3 4 4 2 . Ballistic Gun 14 | . 26 19 . . . . . . 20 25 25 26 25 25 23 23 22 22 20 7 11 . . . Peak Build Rating 144 | 7 13 20 27 29 36 70 69 71 70 75 87 83 85 86 94 104 104 103 118 127 144 108 121 2 Average Rating 59 | 6 9 16 23 28 31 56 66 69 67 74 80 83 83 83 89 94 101 90 107 118 119 106 56 2 On Entrance 65 | . 7 11 20 26 29 32 69 66 69 69 75 83 83 83 83 94 103 99 90 101 126 99 108 2 Naked Turns 191 | . . . . . . . . . . . . . . . . . . . . . . . 72 119 Heaviest Build 140 | 13 94 92 66 70 71 81 79 78 91 97 114 110 115 131 133 123 124 130 126 134 140 104 104 . Greatest Support 225 | 40 40 60 60 60 80 140 140 140 140 140 140 140 140 140 168 168 168 168 225 225 225 119 119 3 Greatest Overweight (x) 3 | . 3 1 1 1 1 . . . . . . . . . . 1 . 1 1 . 1 . . . Average Overweight (x) . | . 1 . 1 . . . . . . . . . . . . . . . . . . . . . Largest Inventory Capacity 25 | 8 25 25 20 20 20 20 20 20 20 20 20 20 20 20 20 20 20 20 20 20 20 20 20 5 Average Capacity 19 | 7 18 22 20 20 20 20 20 20 20 20 20 20 20 20 20 20 20 20 20 20 20 20 12 5 Most Carried 25 | 7 23 25 20 20 20 20 20 20 20 20 20 20 20 20 20 20 20 20 20 17 20 17 17 3 Average Carried 18 | 4 16 21 19 19 19 19 20 19 19 19 18 20 20 19 19 19 18 18 18 16 18 16 10 3 Final Capacity 25 | 8 25 20 20 20 20 20 20 20 20 20 20 20 20 20 20 20 20 20 20 20 20 20 5 5 Final Carried 22 | 6 22 20 20 20 20 20 20 20 20 20 20 20 20 20 20 19 18 20 18 17 18 16 3 3 Class Distribution -------------------- 34% | Scavenger-Tank 16% | Tank 15% | Mutant 13% | Gunner 10% | Scavenger-Gunner 4% | Bothacker-Gunner Dominant Class ---------------- Mutant | -10/Materials Gunner | -9/Materials Scavenger-Gunner | -8/Materials Gunner | -8/Garrison Bothacker-Gunner | -7/Factory Scavenger-Tank | -7/Waste Scavenger-Tank | -7/Factory Tank | -7/Garrison Tank | -7/Factory Tank | -6/Factory Scavenger-Tank | -6/Garrison Scavenger-Tank | -6/Factory Scavenger-Tank | -6/DSF Scavenger-Tank | -6/Garrison Scavenger-Tank | -5/Factory Scavenger-Tank | -5/Garrison Scavenger-Tank | -5/Factory Scavenger-Tank | -5/DSF Scavenger-Tank | -4/Factory Scavenger-Tank | -4/Garrison Scavenger-Tank | -3/Research Scavenger-Mutant | -2/Research Mutant | -1/Access Mutant | -1/Command Resources | -11 -10 -9 -8 -8 -7 -7 -7 -7 -7 -6 -6 -6 -6 -6 -5 -5 -5 -5 -4 -4 -3 -2 -1 -1 ----------- Run | Yrd Mat Mat Mat Gar Fac Was Fac Gar Fac Fac Gar Fac DSF Gar Fac Gar Fac DSF Fac Gar Res Res Acc Com Matter Collected 12337 | 370 603 828 177 353 322 308 . 110 672 98 1365 . 351 1317 602 1207 . 1014 553 648 1333 . 106 . Remotely . | . . . . . . . . . . . . . . . . . . . . . . . . . Salvage Created 16844 | 181 696 1639 445 811 571 1210 . 621 903 104 1231 . 563 1356 398 1862 . 973 544 549 2165 . 22 . Parts 794 | 13 54 93 30 51 28 17 . 8 45 1 62 . 35 68 12 94 . 35 21 19 102 . 6 . Haulers Intercepted 13 | . 2 5 1 . 2 . . . . 1 . . . . 2 . . . . . . . . . Recyclers Shooed 5 | . 1 . . . 1 . . . . . . . . . . . . . . . 3 . . . Parts Field Recycled . | . . . . . . . . . . . . . . . . . . . . . . . . . Retrieved Matter . | . . . . . . . . . . . . . . . . . . . . . . . . . Parts Self-Destructed . | . . . . . . . . . . . . . . . . . . . . . . . . . Prevented . | . . . . . . . . . . . . . . . . . . . . . . . . . Kills | -11 -10 -9 -8 -8 -7 -7 -7 -7 -7 -6 -6 -6 -6 -6 -5 -5 -5 -5 -4 -4 -3 -2 -1 -1 ------- Run | Yrd Mat Mat Mat Gar Fac Was Fac Gar Fac Fac Gar Fac DSF Gar Fac Gar Fac DSF Fac Gar Res Res Acc Com Combat Hostiles Destroyed 279 | . 19 30 8 17 7 5 . 11 12 . 26 . 11 33 3 37 . 16 7 12 25 . . . Guns 204 | . 17 22 . . . . . 9 12 . 26 . 11 29 3 37 . 15 7 7 9 . . . Cannons 54 | . . 8 8 16 2 4 . . . . . . . . . . . . . 3 13 . . . AOE 11 | . 2 . . . 5 . . . . . . . . 4 . . . . . . . . . . Classes Destroyed 21 | 3 3 4 1 2 2 1 . . 2 . . . 1 2 . . . . . . . . . . Worker 14 | 2 1 4 1 . 3 . . . 1 . . . . . . . . . . . . . 2 . Builder 2 | . . . . . 1 . . . . . . . . . . . . . . . 1 . . . Tunneler 9 | 4 . 1 2 . . . . . 2 . . . . . . . . . . . . . . . Hauler 13 | . 2 5 1 . 2 . . . . 1 . . . . 2 . . . . . . . . . Recycler 11 | 1 3 1 . . 3 . . . 1 . . . . . . . . . . . 2 . . . Mechanic 2 | . . . . . . . . . 1 . . . . . 1 . . . . . . . . . Operator 3 | . . 1 1 . . . . . . . . . . . . . . . . . 1 . . . Watcher 7 | . . 2 2 . . . . . 1 . . . . . 1 . . . . . 1 . . . Swarmer 73 | . 14 7 3 . . . . . . . 11 . 4 10 . 12 . 5 . 7 . . . . Cutter 3 | . . . . . . . . . . . . . . 3 . . . . . . . . . . Grunt 90 | . 5 15 2 4 5 . . 6 4 . 5 . 2 8 3 12 . 5 5 3 6 . . . Brawler 4 | . . . . . . . . . 2 . . . . 2 . . . . . . . . . . Duelist 3 | . . 1 . . . . . 1 . . . . . 1 . . . . . . . . . . Sentry 37 | . . 7 2 7 . . . 3 2 . 6 . . 1 . 2 . 1 2 2 2 . . . Demolisher 1 | . . . . 1 . . . . . . . . . . . . . . . . . . . . Specialist 15 | . . . . 2 . . . . . . . . 3 2 . 4 . 4 . . . . . . Hunter 18 | . . . 1 3 . . . 1 1 . 4 . 1 1 . 2 . . . . 4 . . . Programmer 26 | . . . . . 2 . . . 3 . . . . 4 . 4 . . . . 13 . . . Heavy 2 | . . . . . . . . . . . . . 1 . . . . 1 . . . . . . Behemoth 2 | . . . . . . . . . . . . . . 1 . 1 . . . . . . . . Compactor 5 | . . . . . . 5 . . . . . . . . . . . . . . . . . . Wasp 1 | . . . . . . . . 1 . . . . . . . . . . . . . . . . Savage 1 | . . . . . . . . . . . . . . . . 1 . . . . . . . . Martyr 1 | . . . . . . . . 1 . . . . . . . . . . . . . . . . Best Kill Streak 15 | 3 6 5 5 3 8 1 . 3 4 1 11 . 4 15 4 7 . 7 4 5 7 . 2 . Combat Bots Only 15 | . 6 5 3 3 5 1 . 3 4 . 11 . 4 15 2 7 . 7 4 5 6 . . . Max Kills in Single Turn 8 | 1 3 2 2 1 8 1 . 1 1 1 3 . 3 2 2 3 . 2 1 2 1 . 1 . Gunslinging 2 | . . 1 . . . . . . . . 2 . 1 1 . 1 . . . . . . . . Exploded 5 | . 2 . . . 5 . . . . . . . . 2 . . . . . . . . . . Melee . | . . . . . . . . . . . . . . . . . . . . . . . . . Uniques/NPCs Destroyed . | . . . . . . . . . . . . . . . . . . . . . . . . . Combat | -11 -10 -9 -8 -8 -7 -7 -7 -7 -7 -6 -6 -6 -6 -6 -5 -5 -5 -5 -4 -4 -3 -2 -1 -1 -------- Run | Yrd Mat Mat Mat Gar Fac Was Fac Gar Fac Fac Gar Fac DSF Gar Fac Gar Fac DSF Fac Gar Res Res Acc Com Hostile Shots Fired 1698 | . 63 84 25 22 6 . . 46 109 2 197 . 37 143 17 138 . 189 98 79 298 . 79 66 Missed 539 | . 13 26 6 3 2 . . 24 38 1 55 . 8 48 6 29 . 48 31 25 99 . 41 36 Hits 1159 | . 50 58 19 19 4 . . 22 71 1 142 . 29 95 11 109 . 141 67 54 199 . 38 30 Melee 6 | . . 1 . . . . . . 3 . . . . 2 . . . . . . . . . . Projectile 1153 | . 50 57 19 19 4 . . 22 68 1 142 . 29 93 11 109 . 141 67 54 199 . 38 30 AOE 2 | . . . . 1 . . . . . . . . . . . . . . . . . . 1 . Critical Strikes 43 | . 1 1 . 3 . . . 1 3 . 4 . 3 4 1 5 . 2 3 2 8 . . 2 Part Disruptions 4 | . . . . . . . . . 1 . . . . . . 3 . . . . . . . . Damage Taken 17825 | . 535 689 200 378 206 . . 211 784 15 1497 . 429 883 210 1564 . 2330 1471 783 3877 . 967 796 Core 2708 | . 106 64 30 25 16 . . 18 30 . 87 . 16 43 . 115 . 117 134 73 201 . 837 796 Absorbed by Shields 2233 | . . . . . . . . . 130 . 257 . . 415 . 671 . 584 . 176 . . . . Reduced by Siege Mode 369 | . . . . . . . . . 16 . 105 . 10 75 . 50 . 65 . 13 35 . . . Ignored by Resistances 895 | . . . . . . . . . 59 . 195 . 191 450 . . . . . . . . . . Regen/Repaired (Parts) 515 | . 35 200 . . . . . . . . . . . . 280 . . . . . . . . . Core Remaining (%) 84 | 100 57 84 . 90 . . . . 90 . . . . 82 . . . 76 . 82 84 100 . . Volleys Fired 856 | 15 67 78 26 40 19 48 . 27 44 10 65 . 23 64 14 69 3 33 26 33 144 . 8 . Largest 5 | 2 2 3 3 3 3 3 . 3 3 4 4 . 4 4 4 4 1 4 4 4 5 . 1 . Hottest 389 | 40 50 204 204 204 204 243 . 230 230 114 114 . 116 116 116 126 10 126 132 389 190 . 113 . Shots Fired 2336 | 30 131 234 78 97 43 136 . 69 120 19 207 . 80 197 56 256 3 118 94 108 252 . 8 . Gun 1786 | 30 130 192 . . . 9 . 69 117 12 199 . 76 192 56 256 . 118 92 86 152 . . . Cannon 513 | . . 42 78 96 36 123 . . . 7 1 . 4 . . . . . . 19 99 . 8 . Launcher 7 | . 1 . . 1 1 . . . . . . . . 4 . . . . . . . . . . Special 30 | . . . . . 6 4 . . 3 . 7 . . 1 . . 3 . 2 3 1 . . . Kinetic 1645 | 30 130 192 . . . . . . 108 12 199 . 76 192 56 256 . 118 92 42 142 . . . Thermal 633 | . . 42 78 96 36 132 . 69 9 7 1 . 4 . . . . . . 63 88 . 8 . Explosive 7 | . 1 . . 1 1 . . . . . . . . 4 . . . . . . . . . . Electromagnetic 21 | . . . . . . . . . . . . . . . . . . . . . 21 . . . Robot Hit Streak 31 | 8 8 26 8 18 11 23 . 15 29 21 22 . 13 28 7 31 3 18 7 17 12 . 3 . Robot Miss Streak 9 | 1 6 6 4 1 4 3 . 2 4 1 3 . 2 5 3 7 1 4 4 9 7 . 3 . Penetration Max 2 | . . . . . . . . . . . 2 . 1 1 1 1 . 1 1 . 1 . . . Secondary Targets 53 | . 2 5 . . . . . 1 1 . 10 . 2 7 3 12 . 7 2 . 1 . . . Max Gunslinging Chain 2 | . 1 2 . . . . . 1 1 . 2 . 1 1 1 1 . 1 1 . 1 . . . Capacitor 107 | . . . . . . . . . . . . . . . . . . . . . 99 . 8 . Shots Hit Robots 1506 | 18 73 144 46 49 28 103 . 49 95 11 153 . 53 130 34 151 2 85 62 58 158 . 4 . Core Hits 676 | 8 32 62 21 21 30 16 . 35 40 3 66 . 22 103 19 73 . 34 17 20 52 . 2 . Critical Kills 22 | . . . . 1 . 1 . . . . 2 . 1 1 . 7 . 2 2 1 4 . . . Critical Parts Destroyed 37 | . 1 2 . . . . . . 2 . 1 . 1 5 . 7 . 4 8 1 5 . . . Critical Strikes 69 | . 1 2 . 1 . 1 . 3 3 . 3 . 2 7 . 14 . 6 10 4 12 . . . Burn 6 | . . . . . . . . 3 1 . . . . . . . . . . 2 . . . . Meltdown 3 | . . . . 1 . 1 . . . . . . . . . . . . . . 1 . . . Destroy 56 | . 1 2 . . . . . . 1 . 3 . 2 7 . 14 . 6 10 2 8 . . . Corrupt 3 | . . . . . . . . . . . . . . . . . . . . . 3 . . . Smash 1 | . . . . . . . . . 1 . . . . . . . . . . . . . . . Melee Attacks 16 | . 3 2 1 4 . . . . 6 . . . . . . . . . . . . . . . Impact 16 | . 3 2 1 4 . . . . 6 . . . . . . . . . . . . . . . Slashing . | . . . . . . . . . . . . . . . . . . . . . . . . . Piercing . | . . . . . . . . . . . . . . . . . . . . . . . . . Sneak Attacks . | . . . . . . . . . . . . . . . . . . . . . . . . . Combat Hostiles . | . . . . . . . . . . . . . . . . . . . . . . . . . Follow-up Attacks . | . . . . . . . . . . . . . . . . . . . . . . . . . Damage Inflicted 35520 | 208 1051 2200 1027 1031 866 2253 . 1180 2003 216 2767 . 1091 4127 860 3588 . 2145 1407 1711 5625 . 154 10 Guns 24411 | 208 941 1678 . . . . . 1180 1890 216 2706 . 1091 2843 860 3588 . 2145 1393 1152 2520 . . . Cannons 8975 | . . 522 1027 987 480 2253 . . . . . . . . . . . . . 559 2993 . 154 . Explosions 1980 | . 101 . . 44 378 . . . . . 61 . . 1284 . . . . . . 112 . . . Melee 113 | . . . . . . . . . 113 . . . . . . . . . . . . . . . Ramming 41 | . 9 . . . 8 . . . . . . . . . . . . . 14 . . . . 10 Kinetic 22015 | 208 941 1678 . . . . . . 1707 216 2706 . 1091 2843 860 3588 . 2145 1393 251 2388 . . . Thermal 10850 | . . 522 1027 987 480 2253 . 1180 183 . . . . . . . . . . 1460 2604 . 154 . Explosive 1868 | . 101 . . 44 378 . . . . . 61 . . 1284 . . . . . . . . . . Electromagnetic 633 | . . . . . . . . . . . . . . . . . . . . . 633 . . . Impact 113 | . . . . . . . . . 113 . . . . . . . . . . . . . . . Slashing . | . . . . . . . . . . . . . . . . . . . . . . . . . Piercing . | . . . . . . . . . . . . . . . . . . . . . . . . . Highest Corruption 22 | . . 2 1 1 . . . . 3 2 2 2 2 5 . 7 7 7 1 1 22 . . 2 Average Corruption 4 | . . 2 1 1 . . . . 1 2 2 2 2 4 . 4 7 7 1 1 14 . . 1 Corruption Purged . | . . . . . . . . . . . . . . . . . . . . . . . . . Corruption Blocked . | . . . . . . . . . . . . . . . . . . . . . . . . . Effects 226 | . . 8 6 14 . . . . 6 4 19 . 4 32 . 39 5 21 1 5 61 . . 1 Message Errors 47 | . . 1 1 4 . . . . 1 3 5 . 2 9 . 8 1 2 . . 10 . . . Matter Fused 63 | . . 2 4 4 . . . . 3 . 3 . 1 8 . 10 1 6 . 3 17 . . 1 Heat Flow Errors 20 | . . 1 1 1 . . . . . 1 3 . . 1 . 5 . 2 . . 5 . . . Energy Discharges 19 | . . . . 1 . . . . . . 3 . . 4 . 5 . . . . 6 . . . Parts Rejected 3 | . . . . . . . . . . . . . . . . 1 . . . . 2 . . . Parts Fused 2 | . . . . . . . . . . . . . . . . 1 . 1 . . . . . . Data Loss (minor) 32 | . . 2 . 1 . . . . . . 4 . 1 4 . 6 2 3 . 1 8 . . . Data Loss (major) 16 | . . 2 . . . . . . 2 . . . . 3 . 1 1 1 1 . 5 . . . Misfires 8 | . . . . 2 . . . . . . 1 . . . . . . 2 . 1 2 . . . Alerts 2 | . . . . 1 . . . . . . . . . 1 . . . . . . . . . . Misdirections 2 | . . . . . . . . . . . . . . . . . . . . . 2 . . . Weapon Failures 12 | . . . . . . . . . . . . . . 2 . 2 . 4 . . 4 . . . Overload Shots . | . . . . . . . . . . . . . . . . . . . . . . . . . Overflow Damage 223 | . . . 15 14 7 17 . . 29 . . . . 1 . . . . . 14 126 . . . Projectiles 186 | . . . 15 14 . 17 . . . . . . . . . . . . . 14 126 . . . Explosions 8 | . . . . . 7 . . . . . . . . 1 . . . . . . . . . . Melee 29 | . . . . . . . . . 29 . . . . . . . . . . . . . . . Knockbacks 1 | . . . . . . . . . 1 . . . . . . . . . . . . . . . Impact 1 | . . . . . . . . . 1 . . . . . . . . . . . . . . . Kinetic . | . . . . . . . . . . . . . . . . . . . . . . . . . Secondary . | . . . . . . . . . . . . . . . . . . . . . . . . . Self-Inflicted Damage 54 | . . . . . . . . . . . 20 . . 30 . . . . . . . . . 4 Shots 2 | . . . . . . . . . . . 1 . . 1 . . . . . . . . . . Rammed 7 | . 2 . . . 1 . . . . . . . . . . . . . 1 . . . . 3 Targets Rammed 7 | . 2 . . . 1 . . . . . . . . . . . . . 1 . . . . 3 Kicked . | . . . . . . . . . . . . . . . . . . . . . . . . . Crushed . | . . . . . . . . . . . . . . . . . . . . . . . . . Highest Temperature 1397 | . 36 475 348 327 378 312 . 261 198 222 318 . 130 136 408 317 . 1397 63 399 378 . 18 . Average Temperature 105 | . 10 108 123 102 121 104 . 103 42 76 100 . 70 66 128 136 . 195 21 105 110 . 8 . Received Heat Transfer 3262 | . 150 279 27 81 42 . . 72 114 . 273 . 99 205 117 524 . 576 253 141 273 . 36 . Effects 23 | . . 1 1 2 . . . . . . 3 . . . 1 . . 13 . 2 . . . . Shutdowns 9 | . . 1 . 1 . . . . . . 1 . . . 1 . . 3 . 2 . . . . Energy Bleed 5 | . . . . 1 . . . . . . 2 . . . . . . 2 . . . . . . Interference 5 | . . . . . . . . . . . . . . . . . . 5 . . . . . . Matter Decay 1 | . . . . . . . . . . . . . . . . . . 1 . . . . . . Short Circuit 1 | . . . 1 . . . . . . . . . . . . . . . . . . . . . Damage (minor) 2 | . . . . . . . . . . . . . . . . . . 2 . . . . . . Siege Activations 30 | . . . . . . . . 2 4 . 2 . 2 4 . 7 . 2 2 2 3 . . . Total Turns 540 | . . . . . . . . 11 47 . 62 . 23 105 . 146 . 57 20 44 25 . . . Longest Duration 70 | . . . . . . . . 7 29 . 37 . 17 70 . 48 . 34 19 23 14 . . . Martial Activations . | . . . . . . . . . . . . . . . . . . . . . . . . . Shielding Activations . | . . . . . . . . . . . . . . . . . . . . . . . . . Robots Disrupted . | . . . . . . . . . . . . . . . . . . . . . . . . . Combat Hostiles . | . . . . . . . . . . . . . . . . . . . . . . . . . Robots Corrupted 2 | . . . . . . . . . . . . . . . . . . . . . 2 . . . Combat Hostiles 2 | . . . . . . . . . . . . . . . . . . . . . 2 . . . Parts Fried 6 | . . . . . . . . . . . . . . . . . . . . . 6 . . . Impact Corruptions 1 | . . . . . . . . . 1 . . . . . . . . . . . . . . . Robots Melted 7 | . . . . 1 . 1 . 2 . . . . . . . . . . . 2 1 . . . Combat Hostiles 7 | . . . . 1 . 1 . 2 . . . . . . . . . . . 2 1 . . . Parts Melted 51 | . . 3 4 6 3 . . 10 1 . . . . . 1 . . 12 2 2 6 . 1 . Heat Transferred 17130 | . . 888 1813 1776 814 4070 . 3000 525 . . . . . . . . . . 1850 2246 . 148 . Parts Sabotaged . | . . . . . . . . . . . . . . . . . . . . . . . . . Parts Stolen . | . . . . . . . . . . . . . . . . . . . . . . . . . Parts Stripped . | . . . . . . . . . . . . . . . . . . . . . . . . . Power Chain Reactions 1 | . . . . . . . . . . . . . . . . . . . . . 1 . . . Alert | -11 -10 -9 -8 -8 -7 -7 -7 -7 -7 -6 -6 -6 -6 -6 -5 -5 -5 -5 -4 -4 -3 -2 -1 -1 ------- Run | Yrd Mat Mat Mat Gar Fac Was Fac Gar Fac Fac Gar Fac DSF Gar Fac Gar Fac DSF Fac Gar Res Res Acc Com Maximum Alert Level 5 | . 1 1 . 3 2 . . 4 4 2 4 3 3 5 3 5 4 4 2 3 2 1 1 1 Low Security (%) 34 | 100 99 78 100 12 . 100 100 6 . . . . . . . . . . . . 11 62 68 32 Level 1 14 | . . 21 . 9 37 . . 10 . 20 13 . . . . . . . . . 82 37 31 67 Level 2 17 | . . . . 65 62 . . 23 . 79 21 . 48 9 . . . . 100 77 5 . . . Level 3 16 | . . . . 12 . . . 27 96 . 24 100 51 16 100 13 . 71 . 22 . . . . Level 4 12 | . . . . . . . . 32 3 . 40 . . 71 . 25 100 28 . . . . . . Level 5 4 | . . . . . . . . . . . . . . 1 . 61 . . . . . . . . High Security . | . . . . . . . . . . . . . . . . . . . . . . . . . Max Security . | . . . . . . . . . . . . . . . . . . . . . . . . . Sterilizations 2 | . . . . . . . . . . . . . 1 . . . . 1 . . . . . . Peak Influence 2246 | 10 205 284 96 898 527 155 . 1576 1107 538 1462 767 808 1668 1022 2246 1195 1107 639 705 418 204 387 239 Initial 1178 | . . 39 96 11 471 155 . . 827 538 252 767 529 606 875 704 1178 780 581 422 384 204 110 239 Average 580 | 1 81 117 29 516 413 23 . 879 1028 449 951 763 698 1258 923 1722 1159 968 592 592 310 194 139 213 Influence Increases 12839 | 35 594 984 276 967 351 . . 1816 812 28 1430 . 279 1092 252 1662 27 417 272 323 729 . 493 . Destroy 0b10 Robot/C 6920 | . 380 600 160 400 140 . . 740 380 . 880 . 220 660 140 1020 . 320 140 240 500 . . . Destroy 0b10 Robot/NC 330 | 35 30 70 35 . 55 . . . 35 5 . . . 5 25 . . . . . 25 . 10 . Destroy Leader 942 | . 84 154 56 30 36 . . 40 92 2 20 . 40 70 26 70 . 50 40 20 112 . . . Allied During Kill 1030 | . . . . 58 9 . . 556 106 . 144 . . . 30 124 . . . 3 . . . . Successful Hack 312 | . 5 50 7 28 . . . 14 26 . 37 . . 21 14 21 27 . 14 . 12 . 36 . Disable Machine 435 | . 15 . . . 90 . . 15 135 15 15 . 15 . . 15 . 15 60 15 30 . . . Anti-Garrison Action 1550 | . . . . 400 . . . 350 . . 250 . . 250 . 300 . . . . . . . . Destroy Structure 405 | . 5 5 3 51 21 . . 41 38 6 69 . 4 26 2 37 . 2 18 15 50 . 12 . Partial Spotted 30 | . 15 . . . . . . 15 . . . . . . . . . . . . . . . . Lose Combat Pursuer 885 | . 60 105 15 . . . . 45 . . 15 . . 60 15 75 . 30 . 30 . . 435 . Influence Decreases 12650 | 35 501 848 487 87 805 444 . 240 1289 767 328 705 228 232 913 423 1158 425 776 241 1051 179 303 185 Entered New Map 7328 | . . 54 133 7 427 289 . . 749 561 108 695 228 202 793 303 1068 335 526 181 301 159 74 135 Time Decay 3862 | 35 501 494 354 . 368 135 . . 490 206 . 10 . . 100 . 90 . 190 . 620 20 199 50 Lost Part 370 | . . . . . 10 . . . 10 . 20 . . 10 . 30 . 90 40 . 130 . 30 . Lost Ally 790 | . . . . 80 . 20 . 240 40 . 200 . . 20 20 90 . . 20 60 . . . . Purge Threat 300 | . . 300 . . . . . . . . . . . . . . . . . . . . . . Squads Dispatched 37 | . 3 3 2 . 1 . . . 4 1 . . 2 . 2 . . 3 3 . 6 . 3 4 Investigation 11 | . 2 2 2 . . . . . . . . . . . 1 . . . . . 1 . 2 1 Extermination 9 | . . . . . 1 . . . 2 1 . . . . . . . . . . 4 . 1 . Reinforcement 13 | . 1 1 . . . . . . . . . . 2 . 1 . . 3 1 . 1 . . 3 Assault 3 | . . . . . . . . . 2 . . . . . . . . . 1 . . . . . Garrison 1 | . . . . . . . . . . . . . . . . . . . 1 . . . . . Intercept . | . . . . . . . . . . . . . . . . . . . . . . . . . Searches Triggered . | . . . . . . . . . . . . . . . . . . . . . . . . . Construction Impeded 1 | . . . . . . . . . . . . . . . . . . . . . 1 . . . Haulers Reinforced 1 | . . . . . . . . . . . . . . . 1 . . . . . . . . . Active Scanning Responses . | . . . . . . . . . . . . . . . . . . . . . . . . . Cargo Convoy Interrupts . | . . . . . . . . . . . . . . . . . . . . . . . . . Alert ID Control Effect 6 | . . . . . . . . . . . 1 . . . . . . . 1 4 . . . . Stealth | -11 -10 -9 -8 -8 -7 -7 -7 -7 -7 -6 -6 -6 -6 -6 -5 -5 -5 -5 -4 -4 -3 -2 -1 -1 --------- Run | Yrd Mat Mat Mat Gar Fac Was Fac Gar Fac Fac Gar Fac DSF Gar Fac Gar Fac DSF Fac Gar Res Res Acc Com Distress Signals 14 | . 2 5 . . . . . . . . . . . . 1 . . . 1 . 1 . 4 . Communications Jammed 45 | . . . . . . . . . . . . . . . 40 . . . 5 . . . . . Distress Signals 41 | . . . . . . . . . . . . . . . 36 . . . 5 . . . . . Times Spotted 441 | . 28 39 13 13 7 6 . 30 25 1 44 2 10 39 10 48 . 19 16 20 31 . 25 15 Peak Tracking Total 18 | . 5 8 2 2 5 2 . 6 5 1 9 2 4 6 5 5 . 7 4 7 5 . 18 13 Tactical Retreats 26 | . 3 4 1 . . . . 1 . . 1 . . 3 1 4 . 1 . 2 . . 5 . Traps | -11 -10 -9 -8 -8 -7 -7 -7 -7 -7 -6 -6 -6 -6 -6 -5 -5 -5 -5 -4 -4 -3 -2 -1 -1 ------- Run | Yrd Mat Mat Mat Gar Fac Was Fac Gar Fac Fac Gar Fac DSF Gar Fac Gar Fac DSF Fac Gar Res Res Acc Com Traps Triggered 25 | . 2 2 . 6 2 . . . 2 1 4 . . . . 3 . 1 . . 2 . . . Indirectly . | . . . . . . . . . . . . . . . . . . . . . . . . . Trap Hack Attempts . | . . . . . . . . . . . . . . . . . . . . . . . . . Triggered . | . . . . . . . . . . . . . . . . . . . . . . . . . Disarmed . | . . . . . . . . . . . . . . . . . . . . . . . . . Reprogrammed . | . . . . . . . . . . . . . . . . . . . . . . . . . Reused . | . . . . . . . . . . . . . . . . . . . . . . . . . Traps Extracted . | . . . . . . . . . . . . . . . . . . . . . . . . . Installed . | . . . . . . . . . . . . . . . . . . . . . . . . . Triggered . | . . . . . . . . . . . . . . . . . . . . . . . . . Machines | -11 -10 -9 -8 -8 -7 -7 -7 -7 -7 -6 -6 -6 -6 -6 -5 -5 -5 -5 -4 -4 -3 -2 -1 -1 ---------- Run | Yrd Mat Mat Mat Gar Fac Was Fac Gar Fac Fac Gar Fac DSF Gar Fac Gar Fac DSF Fac Gar Res Res Acc Com Machines Disabled 53 | . 1 1 . 4 6 . . 8 9 1 5 . 1 3 . 5 . 1 4 2 2 . . . Max in Single Turn 2 | . 1 1 . 1 . . . 1 1 1 2 . 1 1 . 1 . 1 1 1 1 . . . Garrison Relay 19 | . . . . 4 . . . 5 . . 3 . . 3 . 4 . . . . . . . . Phase Generator 1 | . . . . . . . . . . . 1 . . . . . . . . . . . . . Machines Repaired . | . . . . . . . . . . . . . . . . . . . . . . . . . Machines Dismantled . | . . . . . . . . . . . . . . . . . . . . . . . . . Machines Sabotaged . | . . . . . . . . . . . . . . . . . . . . . . . . . Overloaded Fab Kills . | . . . . . . . . . . . . . . . . . . . . . . . . . Hacking | -11 -10 -9 -8 -8 -7 -7 -7 -7 -7 -6 -6 -6 -6 -6 -5 -5 -5 -5 -4 -4 -3 -2 -1 -1 --------- Run | Yrd Mat Mat Mat Gar Fac Was Fac Gar Fac Fac Gar Fac DSF Gar Fac Gar Fac DSF Fac Gar Res Res Acc Com Machines Accessed 67 | . 7 12 6 3 3 . 2 1 7 1 3 1 . 2 2 3 2 . 2 1 4 . 4 1 Terminals 49 | . 5 8 3 3 1 . 1 1 5 . 3 1 . 2 . 3 2 . 1 1 4 . 4 1 Fabricators 3 | . . . . . 1 . . . 1 . . . . . 1 . . . . . . . . . Repair Stations 5 | . 1 2 1 . . . . . 1 . . . . . . . . . . . . . . . Recycling Units 2 | . 1 1 . . . . . . . . . . . . . . . . . . . . . . Scanalyzers 2 | . . 1 1 . . . . . . . . . . . . . . . . . . . . . Garrison Access 6 | . . . 1 . 1 . 1 . . 1 . . . . 1 . . . 1 . . . . . Total Hacks 155 | . 27 30 17 7 4 . 4 3 13 2 5 1 . 5 5 4 3 . 3 2 8 . 9 3 Successful 72 | . 14 17 9 2 2 . 2 1 2 2 3 1 . 2 4 2 2 . 2 . 1 . 4 . Failed 83 | . 13 13 8 5 2 . 2 2 11 . 2 . . 3 1 2 1 . 1 2 7 . 5 3 Catastrophic 19 | . 2 1 2 1 1 . 1 . 3 . . . . 1 . 2 1 . 1 . 2 . 1 . Database Lockouts . | . . . . . . . . . . . . . . . . . . . . . . . . . Manual 27 | . 14 5 . 1 . . . . 3 . . . . . . . 2 . 1 . 1 . . . Terminals 115 | . 22 20 6 7 1 . 3 3 11 . 5 1 . 5 . 4 3 . 2 2 8 . 9 3 Fabricators 6 | . . . . . 2 . . . 1 . . . . . 3 . . . . . . . . . Repair Stations 15 | . 2 7 5 . . . . . 1 . . . . . . . . . . . . . . . Recycling Units 4 | . 3 1 . . . . . . . . . . . . . . . . . . . . . . Scanalyzers 6 | . . 2 4 . . . . . . . . . . . . . . . . . . . . . Garrison Access 9 | . . . 2 . 1 . 1 . . 2 . . . . 2 . . . 1 . . . . . Terminal Hacks 38 | . 9 8 1 2 . . 1 1 1 . 3 1 . 2 . 2 1 . 1 . 1 . 4 . Record 2 | . . . . . . . . . . . . . . . . . . . . . 1 . 1 . Robot Schematic 1 | . 1 . . . . . . . . . . . . . . . . . . . . . . . Robot Analysis 4 | . 3 1 . . . . . . . . . . . . . . . . . . . . . . Prototype ID Bank 3 | . 2 1 . . . . . . . . . . . . . . . . . . . . . . Open Door 6 | . . . . . . . . . . . 1 . . 1 . 1 . . . . . . 3 . Open DSF 2 | . . . . . . . . . . . . 1 . . . . 1 . . . . . . . Emergency Access Points 5 | . . . . 1 . . . 1 . . 1 . . 1 . 1 . . . . . . . . Alert Level 1 | . 1 . . . . . . . . . . . . . . . . . . . . . . . Unreport Threat 2 | . . 2 . . . . . . . . . . . . . . . . . . . . . . Locate Traps 2 | . . . . . . . 1 . 1 . . . . . . . . . . . . . . . Recall Reinforcements 1 | . 1 . . . . . . . . . . . . . . . . . . . . . . . Hauler Manifests 1 | . . . 1 . . . . . . . . . . . . . . . . . . . . . Registered Components 1 | . . 1 . . . . . . . . . . . . . . . . . . . . . . Registered Prototypes 1 | . . 1 . . . . . . . . . . . . . . . . . . . . . . Zone Layout 4 | . 1 2 . . . . . . . . . . . . . . . . 1 . . . . . Garrison Registry 1 | . . . . 1 . . . . . . . . . . . . . . . . . . . . Security Stations 1 | . . . . . . . . . . . 1 . . . . . . . . . . . . . Fabricator Hacks 3 | . . . . . 1 . . . . . . . . . 2 . . . . . . . . . Network Status 1 | . . . . . 1 . . . . . . . . . . . . . . . . . . . Load Schematic 1 | . . . . . . . . . . . . . . . 1 . . . . . . . . . Build 1 | . . . . . . . . . . . . . . . 1 . . . . . . . . . Repair Station Hacks 9 | . 2 4 3 . . . . . . . . . . . . . . . . . . . . . Scan Component 5 | . 1 2 2 . . . . . . . . . . . . . . . . . . . . . Repair 4 | . 1 2 1 . . . . . . . . . . . . . . . . . . . . . Recycling Unit Hacks 1 | . 1 . . . . . . . . . . . . . . . . . . . . . . . Retrieve Components 1 | . 1 . . . . . . . . . . . . . . . . . . . . . . . Scanalyzer 6 | . . 2 4 . . . . . . . . . . . . . . . . . . . . . Insert Component 3 | . . 1 2 . . . . . . . . . . . . . . . . . . . . . Analyze 3 | . . 1 2 . . . . . . . . . . . . . . . . . . . . . Garrison Access Hacks 8 | . . . 1 . 1 . 1 . . 2 . . . . 2 . . . 1 . . . . . Unlock Access 6 | . . . 1 . 1 . 1 . . 1 . . . . 1 . . . 1 . . . . . Coupler Status 2 | . . . . . . . . . . 1 . . . . 1 . . . . . . . . . Unauthorized Hacks 7 | . 2 3 . . . . . . 1 . . . . . . . 1 . . . . . . . Terminals 6 | . 2 2 . . . . . . 1 . . . . . . . 1 . . . . . . . Botnet 5 | . 2 1 . . . . . . 1 . . . . . . . 1 . . . . . . . Operators 1 | . . 1 . . . . . . . . . . . . . . . . . . . . . . Fabricators . | . . . . . . . . . . . . . . . . . . . . . . . . . Repair Stations . | . . . . . . . . . . . . . . . . . . . . . . . . . Recycling Units 1 | . . 1 . . . . . . . . . . . . . . . . . . . . . . Mask 1 | . . 1 . . . . . . . . . . . . . . . . . . . . . . Scanalyzers . | . . . . . . . . . . . . . . . . . . . . . . . . . Garrison Access . | . . . . . . . . . . . . . . . . . . . . . . . . . Data Cores Recovered 2 | . . 1 . . . . . . 1 . . . . . . . . . . . . . . . Used 1 | . . 1 . . . . . . . . . . . . . . . . . . . . . . Hacking Detections 54 | . 7 10 5 3 3 . 2 1 7 1 1 . . . 2 1 1 . 2 1 4 . 2 1 Full Trace Events 9 | . 2 1 2 . . . . . . . . . . . 1 . . . . . . . 2 1 Feedback Events 1 | . . . 1 . . . . . . . . . . . . . . . . . . . . . Corruption 1 | . . . 1 . . . . . . . . . . . . . . . . . . . . . Feedback Blocked . | . . . . . . . . . . . . . . . . . . . . . . . . . Robot Schematics Acquired 1 | . 1 . . . . . . . . . . . . . . . . . . . . . . . Robots Built 1 | . . . . . . . . . . . . . . . 1 . . . . . . . . . Authchips . | . . . . . . . . . . . . . . . . . . . . . . . . . Time 40 | . . . . . . . . . . . . . . . 40 . . . . . . . . . Total Robot Build Rating 1 | . . . . . . . . . . . . . . . 1 . . . . . . . . . Part Schematics Acquired 3 | . . 1 2 . . . . . . . . . . . . . . . . . . . . . Parts Built . | . . . . . . . . . . . . . . . . . . . . . . . . . Authchips . | . . . . . . . . . . . . . . . . . . . . . . . . . Time . | . . . . . . . . . . . . . . . . . . . . . . . . . Total Part Build Rating . | . . . . . . . . . . . . . . . . . . . . . . . . . Parts Repaired 4 | . 1 2 1 . . . . . . . . . . . . . . . . . . . . . Time 128 | . 32 52 44 . . . . . . . . . . . . . . . . . . . . . Parts Recycled . | . . . . . . . . . . . . . . . . . . . . . . . . . Recycled Matter . | . . . . . . . . . . . . . . . . . . . . . . . . . Retrieved Matter . | . . . . . . . . . . . . . . . . . . . . . . . . . Retrieved Components 10 | . 10 . . . . . . . . . . . . . . . . . . . . . . . Parts Scanalyzed 3 | . . 1 2 . . . . . . . . . . . . . . . . . . . . . Part Schematics Acquired 3 | . . 1 2 . . . . . . . . . . . . . . . . . . . . . Parts Damaged . | . . . . . . . . . . . . . . . . . . . . . . . . . Bothacking | -11 -10 -9 -8 -8 -7 -7 -7 -7 -7 -6 -6 -6 -6 -6 -5 -5 -5 -5 -4 -4 -3 -2 -1 -1 ------------ Run | Yrd Mat Mat Mat Gar Fac Was Fac Gar Fac Fac Gar Fac DSF Gar Fac Gar Fac DSF Fac Gar Res Res Acc Com Used RIF Installer 7 | . . . . 2 . . . 1 . . 1 . . 1 . 1 . . . 1 . . . . Command Fork 1 | . . . . . . . . . . . . . . . . . . . . 1 . . . . Zone Cloak 1 | . . . . . . . . . . . . . . 1 . . . . . . . . . . Watcher Feeds 1 | . . . . . . . . . . . 1 . . . . . . . . . . . . . Patrol Navigation 1 | . . . . . . . . . . . . . . . . 1 . . . . . . . . Alert ID Control 1 | . . . . 1 . . . . . . . . . . . . . . . . . . . . Structural Interface 1 | . . . . . . . . 1 . . . . . . . . . . . . . . . . Robots Hacked 17 | . . . . . 1 4 . . . . 6 . . 1 . . 1 . 2 2 . . . . Non-combat 2 | . . . . . 1 . . . . . . . . . . . 1 . . . . . . . Combat 15 | . . . . . . 4 . . . . 6 . . 1 . . . . 2 2 . . . . Robot Hacks Applied 17 | . . . . . 1 4 . . . . 6 . . 1 . . 1 . 2 2 . . . . parse_system 1 | . . . . . . . . . . . . . . . . . 1 . . . . . . . find_chute 1 | . . . . . 1 . . . . . . . . . . . . . . . . . . . ignore_targets 4 | . . . . . . 4 . . . . . . . . . . . . . . . . . . overload_power 3 | . . . . . . . . . . . 3 . . . . . . . . . . . . . amplify_resonance 1 | . . . . . . . . . . . 1 . . . . . . . . . . . . . overwrite_iff 6 | . . . . . . . . . . . 1 . . 1 . . . . 2 2 . . . . formatsys_high 1 | . . . . . . . . . . . 1 . . . . . . . . . . . . . Relay Couplers Released 85 | . . . . 16 4 . . 21 . . 15 . . 12 . 17 . . . . . . . . Machine Destruction 78 | . . . . 16 . . . 21 . . 15 . . 12 . 14 . . . . . . . . Programmers 7 | . . . . . 4 . . . . . . . . . . 3 . . . . . . . . Attached 8 | . . . . . 1 . . 1 . . 2 . . 2 . 1 . . 1 . . . . . Fabnet Peak Effective % . | . . . . . . . . . . . . . . . . . . . . . . . . . Robots Rewired 18 | . . . . 4 1 . . 6 . . 4 . . . . 2 . . . 1 . . . . Allies Hacked 2 | . . . . . 1 . . . 1 . . . . . . . . . . . . . . . Hacks Repelled . | . . . . . . . . . . . . . . . . . . . . . . . . . Allies | -11 -10 -9 -8 -8 -7 -7 -7 -7 -7 -6 -6 -6 -6 -6 -5 -5 -5 -5 -4 -4 -3 -2 -1 -1 -------- Run | Yrd Mat Mat Mat Gar Fac Was Fac Gar Fac Fac Gar Fac DSF Gar Fac Gar Fac DSF Fac Gar Res Res Acc Com Total Allies 55 | . . . . 4 1 19 . 8 . . 10 . . 3 1 4 . . 2 3 . . . . Largest Group 19 | . . . . 4 1 19 19 19 9 . 4 . . 2 3 4 . . 2 1 . . . . Highest-Rated Group 465 | . . . . 96 32 465 465 465 328 . 252 . . 75 89 235 . . 94 58 . . . . Highest-Rated Ally 95 | . . . . 24 32 35 35 80 80 . 80 . . 46 46 95 . . 47 58 . . . . Total Orders 4 | . . . . 3 . . . . . . . . . . 1 . . . . . . . . . STAY 2 | . . . . 2 . . . . . . . . . . . . . . . . . . . . FOLLOW 1 | . . . . 1 . . . . . . . . . . . . . . . . . . . . AID 1 | . . . . . . . . . . . . . . . 1 . . . . . . . . . Ally Attacks 402 | . . . . 20 5 12 . 172 48 . 63 . . 2 19 49 . . 5 7 . . . . Total Damage 11880 | . . . . 501 684 531 . 3168 2427 . 1774 . . 134 481 1752 . . 193 235 . . . . Kills 92 | . . . . 3 2 1 . 28 15 . 19 . . . 5 14 . . 1 4 . . . . Allies Corrupted . | . . . . . . . . . . . . . . . . . . . . . . . . . Allies Melted . | . . . . . . . . . . . . . . . . . . . . . . . . . Intel | -11 -10 -9 -8 -8 -7 -7 -7 -7 -7 -6 -6 -6 -6 -6 -5 -5 -5 -5 -4 -4 -3 -2 -1 -1 ------- Run | Yrd Mat Mat Mat Gar Fac Was Fac Gar Fac Fac Gar Fac DSF Gar Fac Gar Fac DSF Fac Gar Res Res Acc Com Active Infowar (turns) 12251 | 87 2192 . 1142 41 824 46 115 399 1089 427 1623 28 398 325 216 186 74 156 392 175 1925 54 337 . Seismic 8750 | 87 2192 . 1142 41 819 46 115 83 640 426 . . . . 46 . 74 156 392 175 1925 54 337 . Jamming 4597 | . . . . . 5 . . 316 556 427 1623 28 398 325 216 186 . . 285 . 232 . . . Robot Analysis Total 4 | . 3 1 . . . . . . . . . . . . . . . . . . . . . . Derelict Logs Recovered . | . . . . . . . . . . . . . . . . . . . . . . . . . Drone Launches . | . . . . . . . . . . . . . . . . . . . . . . . . . Drone Recoveries . | . . . . . . . . . . . . . . . . . . . . . . . . . Exploration | -11 -10 -9 -8 -8 -7 -7 -7 -7 -7 -6 -6 -6 -6 -6 -5 -5 -5 -5 -4 -4 -3 -2 -1 -1 ------------- Run | Yrd Mat Mat Mat Gar Fac Was Fac Gar Fac Fac Gar Fac DSF Gar Fac Gar Fac DSF Fac Gar Res Res Acc Com Turns Passed 23137 | 203 2745 2122 1283 1867 852 932 120 1638 1280 427 1683 28 398 1220 216 1723 190 513 394 555 2096 54 479 119 Spaces Moved 10906 | 78 1389 908 422 675 451 428 63 819 640 235 826 18 154 552 83 696 113 199 147 243 922 34 585 226 Core 571 | 3 . . . . . . . . . . . . . . . . . . . . . . 342 226 Treads 9806 | 75 968 908 422 675 451 428 63 819 640 235 826 18 154 552 83 696 113 199 147 243 922 34 135 . Legs . | . . . . . . . . . . . . . . . . . . . . . . . . . Wheels 421 | . 421 . . . . . . . . . . . . . . . . . . . . . . . Hover . | . . . . . . . . . . . . . . . . . . . . . . . . . Flight 108 | . . . . . . . . . . . . . . . . . . . . . . . 108 . Fastest Speed 40 | 50 135 160 240 160 160 150 160 160 160 160 160 160 160 160 160 160 160 160 160 160 155 156 40 50 Average Speed 166 | 155 165 191 240 237 163 159 160 160 160 160 160 160 160 160 160 178 160 174 162 160 169 156 72 50 Slowest Speed 320 | 160 320 240 240 240 240 160 160 160 160 160 160 160 160 160 160 240 160 240 245 160 235 156 156 50 Overloaded Moves . | . . . . . . . . . . . . . . . . . . . . . . . . . Propulsion Burnouts . | . . . . . . . . . . . . . . . . . . . . . . . . . Robots Hopped 1 | . . . . . . . . . . . . . . . . . . . . . . . 1 . Potential Cave-ins 2 | . . . . . . . . . . 2 . . . . . . . . . . . . . . Cave-ins Triggered 1 | . . . . . . . . . . . . . . . . . . . 1 . . . . . Exploration Rate (%) 42 | 6 97 72 37 69 11 96 2 96 19 9 94 1 97 64 3 83 5 92 6 45 22 1 20 10 Regions Visited 24 Branch Regions 1 Pre-discovered Areas . | . . . . . . . . . . . . . . . . . . . . . . . . . Known Exits Taken 7 | . . . 1 . . . 1 . . 1 . 1 . . 1 . 1 . 1 . . . . . Unknown Exits Taken 7 | 1 1 1 . . . . . . 1 . . . . . . . . . . . 1 1 1 . Scrap Searched . | . . . . . . . . . . . . . . . . . . . . . . . . . Spaces Dug 14 | . 1 2 1 2 . . . . . 3 1 . 3 . . . . . . . 1 . . . Terrain Destroyed 179 | . 1 2 1 6 10 . . . . 7 75 . 6 18 . 8 . 1 9 6 25 . 4 . Melee 6 | . 1 2 1 2 . . . . . . . . . . . . . . . . . . . . Projectile 68 | . . . . . . . . . . 7 2 . 5 7 . 8 . . 9 5 21 . 4 . AOE 102 | . . . . 4 10 . . . . . 73 . . 11 . . . . . . 4 . . . Terrain Rammed . | . . . . . . . . . . . . . . . . . . . . . . . . . Walls Destroyed . | . . . . . . . . . . . . . . . . . . . . . . . . . Machines Disabled . | . . . . . . . . . . . . . . . . . . . . . . . . . Actions | -11 -10 -9 -8 -8 -7 -7 -7 -7 -7 -6 -6 -6 -6 -6 -5 -5 -5 -5 -4 -4 -3 -2 -1 -1 --------- Run | Yrd Mat Mat Mat Gar Fac Was Fac Gar Fac Fac Gar Fac DSF Gar Fac Gar Fac DSF Fac Gar Res Res Acc Com Total 14304 | 127 1708 1143 627 858 535 586 82 1091 791 270 1055 17 255 756 134 1028 122 284 242 335 1353 35 638 232 Wait 1594 | 17 189 70 144 43 21 48 19 152 68 12 87 . 74 94 29 195 . 25 36 44 188 . 36 3 Move 10884 | 77 1388 907 422 674 451 427 62 818 639 235 825 17 153 551 82 695 112 198 147 242 921 33 582 226 Hop 1 | . . . . . . . . . . . . . . . . . . . . . . . 1 . Pick Up 159 | 8 23 25 3 10 6 12 . 2 4 4 10 . . 10 3 6 1 5 4 . 20 . 3 . Fast Attach 82 | 7 2 4 1 3 8 3 . 2 4 . 3 . 1 6 1 7 . 5 3 3 16 . 3 . Attach 63 | . 2 3 3 . 3 2 . 1 1 2 7 . . 3 1 2 2 6 5 3 14 2 1 . Detach 16 | . 3 . . . 1 . . . 2 . 1 . . . . 2 . . 1 2 4 . . . Swap 223 | 1 17 15 20 21 13 22 1 7 15 5 14 . 3 11 2 7 2 10 10 7 20 . . . Drop 215 | 2 12 39 7 20 12 24 . 7 8 2 9 . 1 16 2 12 2 2 10 1 23 . 4 . Fire 856 | 15 67 78 26 40 19 48 . 27 44 10 65 . 23 64 14 69 3 33 26 33 144 . 8 . Melee 16 | . 3 2 1 4 . . . . 6 . . . . . . . . . . . . . . . Ram 4 | . . . . . . . . . . . . . . . . . . . . . 1 . . 3 Kick . | . . . . . . . . . . . . . . . . . . . . . . . . . Crush 3 | . 2 . . . 1 . . . . . . . . . . . . . . . . . . . Escape Stasis 18 | . . . . 12 . . . . . . . . . . . 4 . . . . 2 . . . Rewire 170 | . . . . 31 . . . 75 . . 34 . . 1 . 29 . . . . . . . . Trap . | . . . . . . . . . . . . . . . . . . . . . . . . . Miscellaneous . | . . . . . . . . . . . . . . . . . . . . . . . . . Route ------- -11/Scrapyard -10/Materials (discovered 5 exits: *Mat x3 / [*Min x2]) -9/Materials (discovered 2 exits: *Mat / [*Min]) -8/Materials (discovered 2 exits: *Fac / Gar) -8/Garrison (discovered 3 exits: *Fac x3) -7/Factory -7/Waste -7/Factory -7/Garrison (discovered 3 exits: *Fac x3) -7/Factory (discovered 2 exits: *Fac / [*Low]) -6/Factory -6/Garrison (discovered 3 exits: *Fac x3) -6/Factory -6/DSF -6/Garrison (discovered 2 exits: *Fac x2) -5/Factory (discovered 3 exits: *Fac / [*Upp] / Gar) -5/Garrison (discovered 4 exits: *Fac x4) -5/Factory -5/DSF -4/Factory -4/Garrison -3/Research -2/Research -1/Access -1/Command History --------- Turn | Location | Event 9 | -11/Scrapyard | Discovered new exit (range 16) 204 | -11/Scrapyard | Entered Materials 316 | -10/Materials | Build established: Mutant 494 | -10/Materials | Discovered new exit (range 5) 539 | -10/Materials | Discovered new exit (range 15) 1073 | -10/Materials | Discovered new exit (range 5) 1175 | -10/Materials | Discovered new exit (range 7) 1404 | -10/Materials | Derelicts attacked the area 2491 | -10/Materials | Discovered new exit (range 9) 2579 | -10/Materials | Repaired Arm. Wheel 2949 | -10/Materials | Entered another Materials area 2949 | -9/Materials | Evolved 2 slots: Propulsion x1, Weapon x1 3103 | -9/Materials | Repaired Assault Rifle 3561 | -9/Materials | Build established: Gunner 3566 | -9/Materials | Discovered new exit (range 7) 3760 | -9/Materials | Repaired Lgt. Treads 4082 | -9/Materials | Discovered new exit (range 16) 5071 | -9/Materials | Entered another Materials area 5071 | -8/Materials | Evolved 2 slots: Utility x2 5361 | -8/Materials | Build established: Scavenger-Gunner 5612 | -8/Materials | Repaired Broken Cooling System 5937 | -8/Materials | Discovered new exit (range 3) 6354 | -8/Materials | Identified exit to Garrison 6354 | -8/Materials | Entered Garrison 6384 | -8/Garrison | Triggered checkpoint 6474 | -8/Garrison | Triggered checkpoint 6542 | -8/Garrison | Garrison Relay disabled 6646 | -8/Garrison | Triggered checkpoint 6696 | -8/Garrison | Garrison Relay disabled 6720 | -8/Garrison | Discovered new exit (range 48) 6720 | -8/Garrison | Discovered new exit (range 53) 6720 | -8/Garrison | Discovered new exit (range 61) 6974 | -8/Garrison | Triggered checkpoint 7267 | -8/Garrison | Installed Relay Interface Framework 7317 | -8/Garrison | Garrison Relay disabled 7500 | -8/Garrison | Triggered checkpoint 7530 | -8/Garrison | Triggered checkpoint 7567 | -8/Garrison | Lost 3 allies 7584 | -8/Garrison | Build established: Gunner 7743 | -8/Garrison | Expanded RIF knowledge: Alert ID Control 8159 | -8/Garrison | Garrison Relay disabled 8221 | -8/Garrison | Entered Factory 8221 | -7/Factory | Evolved 2 slots: Propulsion x1, Utility x1 8312 | -7/Factory | Found Prototype Launcher 8312 | -7/Factory | Identified Rocket Array 8319 | -7/Factory | Found Rocket Array 8462 | -7/Factory | Build established: Bothacker-Gunner 8651 | -7/Factory | Identified exit to Garrison 9073 | -7/Factory | Sucked down chute 9073 | -7/Factory | Entered Waste 9078 | -7/Waste | 1 allies followed down the chute 9117 | -7/Waste | Spotted C-40 Crusher 9132 | -7/Waste | Allies destroyed C-40 Crusher 9137 | -7/Waste | Spotted C-40 Crusher 9146 | -7/Waste | Destroyed C-40 Crusher 9181 | -7/Waste | Spotted C-40 Crusher 9213 | -7/Waste | Spotted C-40 Crusher 9221 | -7/Waste | Destroyed C-40 Crusher 9277 | -7/Waste | Spotted C-40 Crusher 9299 | -7/Waste | Destroyed C-40 Crusher 9335 | -7/Waste | Spotted C-40 Crusher 9399 | -7/Waste | Destroyed C-40 Crusher 9479 | -7/Waste | Destroyed C-40 Crusher 9538 | -7/Waste | Discovered new exit (range 13) 9702 | -7/Waste | Warlord forces began an assault 9729 | -7/Waste | Build established: Scavenger-Tank 10005 | -7/Waste | Entered Factory 10005 | -7/Factory | Accompanied by 19 allies 10097 | -7/Factory | Identified exit to Garrison 10125 | -7/Factory | Entered Garrison 10125 | -7/Garrison | Accompanied by 19 allies 10199 | -7/Garrison | Triggered checkpoint 10250 | -7/Garrison | Garrison Relay disabled 10257 | -7/Garrison | Lost 4 allies 10381 | -7/Garrison | Triggered checkpoint 10399 | -7/Garrison | Triggered checkpoint 10429 | -7/Garrison | Build established: Tank 10431 | -7/Garrison | Lost 3 allies 10470 | -7/Garrison | Discovered new exit (range 9) 10683 | -7/Garrison | Lost 6 allies 10791 | -7/Garrison | Triggered checkpoint 10813 | -7/Garrison | Garrison Relay disabled 10953 | -7/Garrison | Triggered checkpoint 11065 | -7/Garrison | Discovered new exit (range 9) 11081 | -7/Garrison | Expanded RIF knowledge: Structural Interface 11231 | -7/Garrison | Triggered checkpoint 11345 | -7/Garrison | Discovered new exit (range 2) 11367 | -7/Garrison | Triggered checkpoint 11394 | -7/Garrison | Garrison Relay disabled 11439 | -7/Garrison | Garrison Relay disabled 11623 | -7/Garrison | Triggered checkpoint 11656 | -7/Garrison | Garrison Relay disabled 11687 | -7/Garrison | Found embedded Infiltrators 11763 | -7/Garrison | Entered Factory 11763 | -7/Factory | Accompanied by 9 allies 11883 | -7/Factory | Lost 7 allies 12563 | -7/Factory | First assault squad dispatched 12944 | -7/Factory | Discovered new exit (range 15) 12995 | -7/Factory | Discovered new exit (range 16) 13043 | -7/Factory | Entered another Factory area 13043 | -6/Factory | Evolved 2 slots: Utility x1, Weapon x1 13470 | -6/Factory | Identified exit to Garrison 13470 | -6/Factory | Entered Garrison 13499 | -6/Garrison | Found embedded Infiltrators 13604 | -6/Garrison | Triggered checkpoint 13678 | -6/Garrison | Rescued a captive Derelict 13688 | -6/Garrison | Rescued a captive Derelict 13698 | -6/Garrison | Garrison Relay disabled 13806 | -6/Garrison | Triggered checkpoint 13889 | -6/Garrison | Phase Generator disabled 13896 | -6/Garrison | Discovered new exit (range 14) 13997 | -6/Garrison | Learned Factory security intel 14017 | -6/Garrison | Lost 3 allies 14166 | -6/Garrison | Destroyed 8 combat bots 14400 | -6/Garrison | Triggered checkpoint 14418 | -6/Garrison | Garrison Relay disabled 14430 | -6/Garrison | Build established: Scavenger-Tank 14472 | -6/Garrison | Triggered checkpoint 14485 | -6/Garrison | Triggered checkpoint 14530 | -6/Garrison | Lost 3 allies 14556 | -6/Garrison | Destroyed 11 combat bots 14654 | -6/Garrison | Discovered new exit (range 15) 14819 | -6/Garrison | Found Hvy. Reactive Plating 14926 | -6/Garrison | Expanded RIF knowledge: Watcher Feeds 14948 | -6/Garrison | Discovered new exit (range 11) 15153 | -6/Garrison | Entered Factory 15181 | -6/Factory | Identified exit to DSF 15181 | -6/Factory | Entered DSF 15226 | -6/DSF | Additional patrols routed to DSF 15372 | -6/DSF | Discovered new exit (range 15) 15456 | -6/DSF | Sterilization system engaged 15476 | -6/DSF | Ambient heat levels rising (+10) 15491 | -6/DSF | Ambient heat levels rising (+10) 15506 | -6/DSF | Ambient heat levels rising (+10) 15521 | -6/DSF | Ambient heat levels rising (+10) 15536 | -6/DSF | Ambient heat levels rising (+10) 15551 | -6/DSF | Ambient heat levels rising (+10) 15566 | -6/DSF | Ambient heat levels rising (+10) 15579 | -6/DSF | Entered Garrison 15681 | -6/Garrison | Triggered checkpoint 15721 | -6/Garrison | Garrison Relay disabled 15801 | -6/Garrison | Spotted B-75 Beast 15821 | -6/Garrison | Destroyed B-75 Beast 15837 | -6/Garrison | Triggered checkpoint 15853 | -6/Garrison | Triggered checkpoint 15858 | -6/Garrison | Triggered checkpoint 15941 | -6/Garrison | Destroyed 15 combat bots 16050 | -6/Garrison | Triggered checkpoint 16090 | -6/Garrison | Garrison Relay disabled 16105 | -6/Garrison | Triggered checkpoint 16219 | -6/Garrison | Discovered new exit (range 14) 16467 | -6/Garrison | Triggered checkpoint 16565 | -6/Garrison | Rescued a captive Derelict 16566 | -6/Garrison | Rescued a captive Derelict 16580 | -6/Garrison | Garrison Relay disabled 16601 | -6/Garrison | Discovered new exit (range 10) 16638 | -6/Garrison | Expanded RIF knowledge: Zone Cloak 16799 | -6/Garrison | Entered Factory 16799 | -5/Factory | Accompanied by 2 allies 16799 | -5/Factory | Evolved 2 slots: Power x1, Propulsion x1 16908 | -5/Factory | Fabricated M-13 Machinist (x1) 16940 | -5/Factory | Discovered new exit (range 12) 16940 | -5/Factory | Discovered new exit (range 3) 17014 | -5/Factory | Identified exit to Garrison 17015 | -5/Factory | Entered Garrison 17015 | -5/Garrison | Accompanied by 2 allies 17036 | -5/Garrison | Found embedded Infiltrators 17047 | -5/Garrison | Triggered checkpoint 17078 | -5/Garrison | Garrison Relay disabled 17266 | -5/Garrison | Spotted B-75 Beast 17348 | -5/Garrison | Destroyed B-75 Beast 17419 | -5/Garrison | Destroyed 7 combat bots 17464 | -5/Garrison | Triggered checkpoint 17559 | -5/Garrison | Discovered new exit (range 10) 17685 | -5/Garrison | Garrison Relay disabled 17747 | -5/Garrison | Triggered checkpoint 17799 | -5/Garrison | Triggered checkpoint 17861 | -5/Garrison | Triggered checkpoint 17931 | -5/Garrison | Discovered new exit (range 13) 18033 | -5/Garrison | Triggered checkpoint 18043 | -5/Garrison | Discovered new exit (range 3) 18111 | -5/Garrison | Triggered checkpoint 18147 | -5/Garrison | Triggered checkpoint 18200 | -5/Garrison | Garrison Relay disabled 18698 | -5/Garrison | Expanded RIF knowledge: Patrol Navigation 18712 | -5/Garrison | Discovered new exit (range 10) 18738 | -5/Garrison | Entered Factory 18782 | -5/Factory | Identified exit to DSF 18928 | -5/Factory | Entered DSF 18985 | -5/DSF | Additional patrols routed to DSF 19156 | -5/DSF | Sterilization system engaged 19167 | -5/DSF | Destroyed 7 combat bots 19176 | -5/DSF | Ambient heat levels rising (+10) 19178 | -5/DSF | Lost 7 parts (1p2n2u2w) 19191 | -5/DSF | Ambient heat levels rising (+10) 19206 | -5/DSF | Ambient heat levels rising (+10) 19221 | -5/DSF | Ambient heat levels rising (+10) 19236 | -5/DSF | Ambient heat levels rising (+10) 19251 | -5/DSF | Ambient heat levels rising (+10) 19266 | -5/DSF | Ambient heat levels rising (+10) 19281 | -5/DSF | Ambient heat levels rising (+10) 19296 | -5/DSF | Ambient heat levels rising (+10) 19311 | -5/DSF | Ambient heat levels rising (+10) 19326 | -5/DSF | Ambient heat levels rising (+10) 19341 | -5/DSF | Ambient heat levels rising (+10) 19356 | -5/DSF | Ambient heat levels rising (+10) 19371 | -5/DSF | Ambient heat levels rising (+10) 19386 | -5/DSF | Ambient heat levels rising (+10) 19401 | -5/DSF | Ambient heat levels rising (+10) 19416 | -5/DSF | Ambient heat levels rising (+10) 19417 | -5/DSF | Discovered new exit (range 15) 19431 | -5/DSF | Ambient heat levels rising (+10) 19441 | -5/DSF | Entered Factory 19441 | -4/Factory | Evolved 2 slots: Propulsion x1, Utility x1 19691 | -4/Factory | First assault squad dispatched 19790 | -4/Factory | Garrison activated, responded to threat 19806 | -4/Factory | Crushed by falling debris 19822 | -4/Factory | Identified exit to Garrison 19835 | -4/Factory | Entered Garrison 19859 | -4/Garrison | Lost 4 parts (4w) 20015 | -4/Garrison | Triggered checkpoint 20074 | -4/Garrison | Triggered checkpoint 20193 | -4/Garrison | Discovered new exit (range 12) 20225 | -4/Garrison | Triggered checkpoint 20293 | -4/Garrison | Expanded RIF knowledge: Command Fork 20390 | -4/Garrison | Entered Research 20390 | -3/Research | Evolved 2 slots: Utility x1, Weapon x1 20623 | -3/Research | Found Prototype Processor 20623 | -3/Research | Identified Spectral Analyzer 20669 | -3/Research | Discovered new exit (range 3) 21293 | -3/Research | System corruption reached 10% 21321 | -3/Research | Lost 4 parts (2u2w) 21333 | -3/Research | Found Quantum Capacitor 21486 | -3/Research | Lost 3 parts (1p2n) 21576 | -3/Research | Build established: Scavenger-Gunner 22060 | -3/Research | Found Unknown Device 22060 | -3/Research | Identified Launcher Loader 22166 | -3/Research | Lost 3 parts (1p2w) 22181 | -3/Research | Found Gamma Bomb Array 22432 | -3/Research | Build established: Scavenger-Mutant 22486 | -3/Research | Entered another Research area 22486 | -2/Research | Evolved 2 slots: Power x1, Utility x1 22532 | -2/Research | Discovered new exit (range 4) 22540 | -2/Research | Entered Access 22540 | -1/Access | Evolved 2 slots: Propulsion x2 22776 | -1/Access | Released all parts (17) 22841 | -1/Access | Spotted B-99 Colossus 22991 | -1/Access | Spotted B-99 Colossus 23004 | -1/Access | Core integrity fell below 50% 23016 | -1/Access | Discovered new exit (range 7) 23019 | -1/Access | Entered Command 23056 | -1/Command | Build established: Mutant 23128 | -1/Command | Core integrity fell below 20% 23138 | -1/Command | Destroyed by H-81 Overseer with Heavy Linear Accelerator Last Messages --------------- 23100_ Operations Mainframe disabled. 23113_ Slug penetrates TF Node. 23113_ TF Node disabled. 23113_ Adv. Sensor Array tumbles out of TF Node. 23113_ Unknown Processor tumbles out of TF Node. 23116_ Slug penetrates Wall. 23116_ Penetrated by Slug. 23117_ Slammed into H-88 Terminator. 23119_ Penetrated by Slug. 23119_ H-88 Terminator suffers critical hit (Destroy). 23120_ Slug penetrates Wall. 23122_ Penetrated by Slug. 23123_ Slug penetrates Wall. 23123_ Slug penetrates S-43 Plague. 23125_ RIF reveals location of hidden door. 23134_ ALERT: Suspicious intruders detected, dispatching Cutter reinforcements to area. 23136_ Knocked back. [Achievement: 40k Club] Map ----- +----------------------------------------------------+ | | | | | | | | | | | | | | | | | | | | | ?????????????????????????????????????????????????? | | ?????????????????????????????????????????????????? | | ?????????????????????????????????????????????????? | | ?????????????????????????????????????????????????? | | ?????????????????????????????????????????????????? | | ?????????????????????????????????????????????????? | | ?????????????????????????????????????????????????? | | ?????????????????????????????????????????????????? | | ??????????????????????+###+#?????????????????????? | | ??????????????????????? ################?????## | | ???????????????????????? ## ??????# | | ????????????????????????# ## ??????# | | ????????????????????????# ## ???#### | | ???????????????????????## ## "" "" ?? ## | | ??????????????# ##### # """" """" ## | | ??????????????# " % @ # """" """" ## | | ??????????????# !H + "" "" ## " | | ??????????????#! ##### # % ## " | | ??????????????#????????###### ## " | | ????????????????????????????######/############ | | ?????????????????????????????????# #??????????# | | ?????????????????????????????????# #??????????# | | ?????????????????????????????????# #??????#######+ | | ?????????????????????????????????# #??????# | | ?????????????????????????????????# #??????# | | ?????????????????????????????????# #??????# | | ?????????????????????????????????# #??????# | | ?????????????????????????????????# #??????#####/## | | ????????????????????????????????##/#####????# | | ????????????????????????????????# #????# | | ????????????????????????????????#^ #????# ! | | ????????????????????????????????# #????# ! | | ????????????????????????????????# #????# | | ????????????????????????????????# #????### ## | | ????????????????????????????????# #??????# #? | | ????????????????????????????????###/########### #? | | ????????????????????????????????+ #? | | ????????????????????????????????# ####? | | ????????????????????????????????# #???? | | ?????????????????????????? #???? | +----------------------------------------------------+ Best States ------------- Heat Dissipation 129 Coolant Potential 65 Energy Generation 43 Energy Capacity 1325 Matter Stores 550 Matter Capacity 550 Sight Range 16 Terrain Scan Density 10 Jamming Range 12 Armor Coverage 1200 Resistance: KI 40 Propulsion Shielding 66 Utility Shielding 66 Evasion (%) 62 Targeting Accuracy 8 Target Analysis 12 Core Analysis 6 Recoil Reduction 6 Relay Coupler Types 1 Relay Coupler Value 45 Item Schematics ----------------- Hrd. Light Armor Plating | -9/Materials | Scanalyzed Cooling System | -8/Materials | Scanalyzed Gauss Rifle | -8/Materials | Scanalyzed Robot Schematics ------------------ M-13 Machinist | -10/Materials | Hacked Fabricated ------------ M-13 Machinist | x1 | -5/Factory Repaired ---------- Arm. Wheel | 65% | -10/Materials Assault Rifle | 12% | -9/Materials Lgt. Treads | 20% | -9/Materials Cooling System | 99% | -8/Materials | Broken Alien Tech Used ----------------- None Achievements -------------- 40k Club Gunslinger Challenges ------------ None Game ------ Seed HardcellHeartDatajack Manual? 0 Play Time 03:48:18 Cumulative 196.8 hours Start 2025.07.22 @ 15:42:20 End 2025.07.22 @ 20:21:12 Sessions 1 Manual Loads 0 Difficulty Rogue Special Mode None Game No. 138 Rogue 138 Adventurer 0 Explorer 0 Win Type - Total 2 Types 2/0/0/0/0/0/0/0/0/0 Lore% 63 Gallery% 58 Achievement% 51 Wizard Run 0 Options --------- Layout 1 ASCII 0 Keyboard 0 Movement Mouse Keybinds 0 Fullscreen 1 Font 32/SmallcapsGlow Map View 50x35 Zoom Use 0% Tactical HUD 1 Map Filters NONE Filters NONE Steam 1 RUN: 133a85c0-c546-42e4-ad88-f543e4f2051b